Cogmind - Beta 11 X8 @@@ ROGUE MODE // 2021.12.04 @ 19:17:51 Player: ZEROAFFEX Result: Self-destructed Performance ------------- Evolutions (2) 1000 Regions Visited (5) 1000 Robots Destroyed (31) 155 Value Destroyed (765) 765 Prototype IDs (0) 0 Alien Tech Used (0) 0 Bonus (-31) -31 TOTAL SCORE: 2889 Bonus ------- Friendly Fire -31 Cogmind --------- Core Integrity 370/550 Matter 275/300 Energy 100/100 System Corruption 0% Temperature Cool (0) Movement Core (1400) Ox27 Location -8/Materials Parts ------- > --- POWER (1) -------- (None) > --- PROPULSION (3) --- (None) > --- UTILITY (4) ------ Huge Storage Unit > --- WEAPON (3) ------- Heavy Assault Rifle > --- INVENTORY (25) --- Deuterium Engine Light Nuclear Core Light Angular Momentum Engine Light Treads Light Treads Advanced Treads Armored Wheel Armored Wheel Armored Wheel Armored Wheel Huge Storage Unit High-capacity Matter Pod (200) Machine Analyzer Medium Armor Plating Hardened Light Armor Plating Shield Generator Shock Rifle Shock Rifle Pulse Rifle Beamcaster Minigun Grenade Launcher Grenade Launcher Missile Launcher Chainsword Peak State ------------ > --- POWER ------------ Light Nuclear Core > --- PROPULSION ------- Advanced Treads Armored Wheel Armored Wheel > --- UTILITY ---------- Huge Storage Unit Machine Analyzer Improved Sensor Array Hardened Light Armor Plating > --- WEAPON ----------- Pulse Rifle Heavy Assault Rifle Minigun > --- INVENTORY -------- Deuterium Engine Light Nuclear Core Light Angular Momentum Engine Light Treads Light Treads Armored Wheel Armored Wheel Armored Wheel Armored Wheel Huge Storage Unit High-capacity Matter Pod Machine Analyzer Medium Armor Plating Hardened Light Armor Plating Shield Generator Beamcaster Shotgun Minigun Grenade Launcher Grenade Launcher Missile Launcher Chainsword [Rating: 32] Favorites ----------- Power Light Nuclear Core Engine Ion Engine Power Core Light Nuclear Core Propulsion Armored Wheel Treads Advanced Treads Wheel Armored Wheel Utility Medium Armor Plating Device Improved Sensor Array Storage Medium Storage Unit Processor Machine Analyzer Protection Medium Armor Plating Weapon Light Assault Rifle Energy Gun EM Pulse Gun Ballistic Gun Light Assault Rifle Launcher Missile Launcher Build | -11 -10 -10 -10 -9 -8 ------- Run | Scr Mat Min Exi Min Mat Slots Evolved 4 | . . . . . 4 Power . | . . . . . . Propulsion 1 | . . . . . 1 Utility 2 | . . . . . 2 Weapon 1 | . . . . . 1 Parts Attached 48 | 7 9 2 . 2 28 Power 2 | 1 . 1 . . . Engine 1 | 1 . . . . . Core 1 | . . 1 . . . Reactor . | . . . . . . Propulsion 12 | 2 3 . . . 7 Treads 5 | 2 . . . . 3 Leg . | . . . . . . Wheel 7 | . 3 . . . 4 Hover . | . . . . . . Flight . | . . . . . . Utility 14 | 2 3 1 . 1 7 Device 2 | 1 . . . . 1 Storage 5 | 1 1 . . 1 2 Processor 1 | . . . . . 1 Hackware . | . . . . . . Protection 6 | . 2 1 . . 3 Artifact . | . . . . . . Weapon 20 | 2 3 . . 1 14 Energy Gun 6 | 2 1 . . . 3 Energy Cannon . | . . . . . . Ballistic Gun 12 | . 2 . . . 10 Ballistic Cannon . | . . . . . . Launcher 2 | . . . . 1 1 Special Weapon . | . . . . . . Impact Weapon . | . . . . . . Slashing Weapon . | . . . . . . Piercing Weapon . | . . . . . . Special Melee Weapon . | . . . . . . Unidentified Prototypes . | . . . . . . Parts Lost 3 | . 1 . . . 2 Power . | . . . . . . Propulsion . | . . . . . . Utility 2 | . . . . . 2 Weapon 1 | . 1 . . . . Highest Loss Streak 1 | . 1 . . . 1 Average Slot Usage (%) 95 | . 97 100 100 100 90 Engine 3 | . 14 10 . . . Core 8 | . . 3 14 14 8 Treads 2 | . . . . . 7 Wheel 23 | . 26 28 28 28 16 Device 2 | . . . . . 6 Storage 12 | . 14 14 14 14 9 Processor 2 | . . . . . 5 Protection 12 | . 12 14 14 14 11 Energy Gun 6 | . 23 . . . 5 Ballistic Gun 17 | . 4 28 28 14 18 Launcher 2 | . . . . 13 1 Naked Turns . | . . . . . . Heaviest Build 106 | 15 26 24 24 39 106 Greatest Support 40 | 40 40 24 24 24 36 Greatest Overweight (x) 28 | 2 1 . . 1 28 Average Overweight (x) . | . . . . . 2 Largest Inventory Capacity 25 | 8 10 10 10 15 25 Average Capacity 15 | 7 9 10 10 14 22 Most Carried 25 | 5 10 10 10 12 25 Average Carried 13 | 3 8 9 10 11 19 Final Capacity 25 | 8 10 10 10 15 25 Final Carried 25 | 5 10 10 10 12 25 Class Distribution -------------------- 72% | Mutant 14% | Skirmisher 13% | Tank Dominant Class ---------------- Mutant | -10/Materials Mutant | -10/Mines Mutant | -10/Exiles Mutant | -9/Mines Skirmisher | -8/Materials Resources | -11 -10 -10 -10 -9 -8 ----------- Run | Scr Mat Min Exi Min Mat Matter Collected 1308 | 151 503 23 . 66 565 Remotely . | . . . . . . Salvage Created 979 | 30 368 18 . 16 547 Parts 69 | 4 21 2 . 8 34 Haulers Intercepted 2 | . 1 . . . 1 Recyclers Shooed 1 | . . . . . 1 Parts Field Recycled . | . . . . . . Retrieved Matter . | . . . . . . Parts Self-Destructed . | . . . . . . Prevented . | . . . . . . Kills | -11 -10 -10 -10 -9 -8 ------- Run | Scr Mat Min Exi Min Mat Combat Hostiles Destroyed 23 | . 7 1 . 4 11 Guns 13 | . 5 1 . . 7 AOE 10 | . 2 . . 4 4 Classes Destroyed 9 | 1 2 1 . . 5 Worker 1 | . . . . . 1 Tunneler 2 | 1 . . . . 1 Hauler 2 | . 1 . . . 1 Recycler 1 | . . . . . 1 Watcher 2 | . . . . . 2 Swarmer 9 | . . 1 . 4 4 Grunt 9 | . 7 . . . 2 Sentry 3 | . . . . . 3 Hunter 2 | . . . . . 2 Best Kill Streak 9 | 1 3 1 . 4 9 Combat Bots Only 7 | . 3 1 . 4 7 Max Kills in Single Turn 3 | 1 2 1 . 3 3 Gunslinging . | . . . . . . Exploded 3 | . 2 . . 3 2 Melee . | . . . . . . Uniques/NPCs Destroyed . | . . . . . . Combat | -11 -10 -10 -10 -9 -8 -------- Run | Scr Mat Min Exi Min Mat Damage Taken 1438 | . 301 54 . 24 1059 Core 235 | . 31 16 . 8 180 Absorbed by Shields . | . . . . . . Core Remaining (%) 89 | 100 . . . 78 . Volleys Fired 80 | 3 27 3 . 2 45 Largest 3 | 2 2 2 . 1 3 Hottest 113 | 80 80 40 . 36 113 Shots Fired 184 | 6 54 6 . 2 116 Gun 180 | 6 54 6 . . 114 Cannon . | . . . . . . Launcher 4 | . . . . 2 2 Special . | . . . . . . Kinetic 116 | . 24 6 . . 86 Thermal 28 | . . . . . 28 Explosive 4 | . . . . 2 2 Electromagnetic 36 | 6 30 . . . . Robot Hit Streak 10 | 3 10 2 . . 10 Robot Miss Streak 5 | 1 2 4 . . 5 Penetration Max . | . . . . . . Secondary Targets 1 | . 1 . . . . Max Gunslinging Chain 1 | . 1 . . . . Shots Hit Robots 115 | 4 35 2 . . 74 Core Hits 53 | 2 16 1 . 5 29 Critical Kills . | . . . . . . Critical Parts Destroyed . | . . . . . . Critical Strikes 3 | 1 . . . . 2 Burn 1 | . . . . . 1 Destroy 1 | . . . . . 1 Corrupt 1 | 1 . . . . . Melee Attacks . | . . . . . . Impact . | . . . . . . Slashing . | . . . . . . Piercing . | . . . . . . Sneak Attacks . | . . . . . . Combat Hostiles . | . . . . . . Follow-up Attacks . | . . . . . . Damage Inflicted 2247 | 51 517 15 . 244 1420 Guns 1576 | 51 413 15 . . 1097 Cannons . | . . . . . . Explosions 671 | . 104 . . 244 323 Melee . | . . . . . . Ramming . | . . . . . . Kinetic 918 | . 145 15 . . 758 Thermal 443 | . 104 . . . 339 Explosive 567 | . . . . 244 323 Electromagnetic 319 | 51 268 . . . . Impact . | . . . . . . Slashing . | . . . . . . Piercing . | . . . . . . Highest Corruption 1 | . 1 1 1 1 . Average Corruption 1 | . 1 1 1 1 . Corruption Purged . | . . . . . . Effects 5 | . . 1 1 3 . Message Errors 3 | . . . 1 2 . Energy Discharges 2 | . . 1 . 1 . Overload Shots . | . . . . . . Overflow Damage 47 | . 20 . . . 27 Projectiles . | . . . . . . Explosions 47 | . 20 . . . 27 Melee . | . . . . . . Knockbacks . | . . . . . . Impact . | . . . . . . Kinetic . | . . . . . . Secondary . | . . . . . . Self-Inflicted Damage 102 | . 41 . . . 61 Shots 3 | . 1 . . . 2 Rammed . | . . . . . . Targets Rammed . | . . . . . . Kicked . | . . . . . . Crushed . | . . . . . . Highest Temperature 483 | 36 219 12 . 6 483 Average Temperature 135 | 18 60 6 . 4 187 Received Heat Transfer 363 | . 165 . . . 198 Effects 6 | . . . . . 6 Shutdowns 1 | . . . . . 1 Interference 3 | . . . . . 3 Short Circuit 1 | . . . . . 1 Damage (minor) 1 | . . . . . 1 Siege Activations . | . . . . . . Robots Corrupted . | . . . . . . Combat Hostiles . | . . . . . . Parts Fried . | . . . . . . Impact Corruptions . | . . . . . . Robots Melted . | . . . . . . Combat Hostiles . | . . . . . . Parts Melted 2 | . . . . . 2 Heat Transferred 864 | . 50 . . . 814 Parts Sabotaged . | . . . . . . Parts Stolen . | . . . . . . Parts Stripped . | . . . . . . Power Chain Reactions 1 | . 1 . . . . Missiles Intercepted . | . . . . . . Alert | -11 -10 -10 -10 -9 -8 ------- Run | Scr Mat Min Exi Min Mat Peak Influence 325 | 5 195 64 . 90 325 Initial 44 | . 3 44 . . 11 Average 109 | 2 97 63 . 71 154 Maximum Alert Level 1 | . . . . . 1 Low Security (%) 92 | 100 100 100 . 100 82 Level 1 7 | . . . . . 17 Level 2 . | . . . . . . Level 3 . | . . . . . . Level 4 . | . . . . . . Level 5 . | . . . . . . High Security . | . . . . . . Max Security . | . . . . . . Squads Dispatched 5 | . 2 1 . . 2 Investigation 3 | . 1 1 . . 1 Extermination . | . . . . . . Reinforcement 2 | . 1 . . . 1 Assault . | . . . . . . Garrison . | . . . . . . Intercept . | . . . . . . Construction Impeded . | . . . . . . Haulers Reinforced . | . . . . . . Active Scanning Responses . | . . . . . . Cargo Convoy Interrupts . | . . . . . . Stealth | -11 -10 -10 -10 -9 -8 --------- Run | Scr Mat Min Exi Min Mat Distress Signals 7 | . 2 . . . 5 Communications Jammed . | . . . . . . Distress Signals . | . . . . . . Times Spotted 42 | . 14 3 . 5 20 Peak Tracking Total 9 | . 3 3 . 4 9 Tactical Retreats 1 | . . . . 1 . Traps | -11 -10 -10 -10 -9 -8 ------- Run | Scr Mat Min Exi Min Mat Traps Triggered 4 | . . . . . 4 Indirectly . | . . . . . . Trap Hack Attempts . | . . . . . . Triggered . | . . . . . . Disarmed . | . . . . . . Reprogrammed . | . . . . . . Reused . | . . . . . . Traps Extracted . | . . . . . . Installed . | . . . . . . Triggered . | . . . . . . Machines | -11 -10 -10 -10 -9 -8 ---------- Run | Scr Mat Min Exi Min Mat Machines Disabled 1 | . . . . . 1 Max in Single Turn 1 | . . . . . 1 Machines Sabotaged . | . . . . . . Garrisons Compromised . | . . . . . . Overloaded Fab Kills . | . . . . . . Hacking | -11 -10 -10 -10 -9 -8 --------- Run | Scr Mat Min Exi Min Mat Machines Accessed 9 | . 3 1 1 1 3 Terminals 2 | . 1 . . . 1 Fabricators . | . . . . . . Repair Stations 2 | . 1 . . . 1 Recycling Units 2 | . 1 . . . 1 Scanalyzers . | . . . . . . Garrison Access . | . . . . . . Total Hacks 50 | . 7 1 23 1 18 Successful 46 | . 6 1 23 1 15 Failed 4 | . 1 . . . 3 Catastrophic . | . . . . . . Database Lockouts . | . . . . . . Manual 6 | . 3 . . . 3 Terminals 4 | . 2 . . . 2 Fabricators . | . . . . . . Repair Stations 19 | . 4 . . . 15 Recycling Units 2 | . 1 . . . 1 Scanalyzers . | . . . . . . Garrison Access . | . . . . . . Terminal Hacks 26 | . . 1 23 1 1 Record 23 | . . . 23 . . Open Door 2 | . . 1 . 1 . Locate Traps 1 | . . . . . 1 Fabricator Hacks . | . . . . . . Repair Station Hacks 16 | . 4 . . . 12 Scan Component 8 | . 2 . . . 6 Repair 8 | . 2 . . . 6 Recycling Unit Hacks . | . . . . . . Scanalyzer . | . . . . . . Garrison Access Hacks . | . . . . . . Unauthorized Hacks 4 | . 2 . . . 2 Terminals 2 | . 1 . . . 1 Track 2 | . 1 . . . 1 Fabricators . | . . . . . . Repair Stations . | . . . . . . Recycling Units 2 | . 1 . . . 1 Tunnel 2 | . 1 . . . 1 Scanalyzers . | . . . . . . Garrison Access . | . . . . . . Data Cores Recovered . | . . . . . . Used . | . . . . . . Hacking Detections 4 | . 2 . . . 2 Full Trace Events 1 | . 1 . . . . Feedback Events 1 | . 1 . . . . Corruption 1 | . 1 . . . . Feedback Blocked . | . . . . . . Robot Schematics Acquired . | . . . . . . Robots Built . | . . . . . . Authchips . | . . . . . . Time . | . . . . . . Total Robot Build Rating . | . . . . . . Part Schematics Acquired . | . . . . . . Parts Built . | . . . . . . Authchips . | . . . . . . Time . | . . . . . . Total Part Build Rating . | . . . . . . Parts Repaired 8 | . 2 . . . 6 Time 268 | . 64 . . . 204 Parts Recycled . | . . . . . . Recycled Matter . | . . . . . . Retrieved Matter . | . . . . . . Retrieved Components . | . . . . . . Parts Scanalyzed . | . . . . . . Part Schematics Acquired . | . . . . . . Parts Damaged . | . . . . . . Bothacking | -11 -10 -10 -10 -9 -8 ------------ Run | Scr Mat Min Exi Min Mat Used RIF Installer . | . . . . . . Robots Hacked . | . . . . . . Non-combat . | . . . . . . Combat . | . . . . . . Robot Hacks Applied . | . . . . . . Relay Couplers Released . | . . . . . . Fabnet Peak Effective % . | . . . . . . Robots Rewired . | . . . . . . Allies Hacked . | . . . . . . Hacks Repelled . | . . . . . . Allies | -11 -10 -10 -10 -9 -8 -------- Run | Scr Mat Min Exi Min Mat Total Allies . | . . . . . . Largest Group . | . . . . . . Highest-Rated Group . | . . . . . . Highest-Rated Ally . | . . . . . . Total Orders . | . . . . . . Ally Attacks . | . . . . . . Total Damage . | . . . . . . Kills . | . . . . . . Allies Corrupted . | . . . . . . Allies Melted . | . . . . . . Intel | -11 -10 -10 -10 -9 -8 ------- Run | Scr Mat Min Exi Min Mat Robot Analysis Total . | . . . . . . Derelict Logs Recovered 2 | . . . . 2 . Drone Launches . | . . . . . . Drone Recoveries . | . . . . . . Exploration | -11 -10 -10 -10 -9 -8 ------------- Run | Scr Mat Min Exi Min Mat Turns Passed 2846 | 111 487 221 488 487 1052 Spaces Moved 1989 | 57 299 222 541 451 419 Core 15 | 10 . . . . 5 Treads 52 | 47 5 . . . . Legs . | . . . . . . Wheels 1922 | . 294 222 541 451 414 Hover . | . . . . . . Flight . | . . . . . . Fastest Speed 50 | 50 90 90 90 90 105 Average Speed 107 | 150 100 90 90 104 142 Slowest Speed 1450 | 160 160 90 90 105 1450 Overloaded Moves . | . . . . . . Propulsion Burnouts . | . . . . . . Robots Hopped . | . . . . . . Cave-ins Triggered . | . . . . . . Exploration Rate (%) 49 | 5 46 41 89 86 29 Regions Visited 5 Branch Regions 3 Pre-discovered Areas 4 | . 1 . 1 1 1 Known Exits Taken 1 | . . . . 1 . Unknown Exits Taken 4 | 1 1 1 1 . . Scrap Searched . | . . . . . . Spaces Dug . | . . . . . . Terrain Destroyed 53 | . 2 . . 33 18 Melee . | . . . . . . Projectile . | . . . . . . AOE 53 | . 2 . . 33 18 Terrain Rammed . | . . . . . . Walls Destroyed . | . . . . . . Machines Disabled . | . . . . . . Actions | -11 -10 -10 -10 -9 -8 --------- Run | Scr Mat Min Exi Min Mat Total 2544 | 73 438 240 541 466 786 Wait 364 | . 87 8 1 3 265 Move 1984 | 56 298 221 540 450 419 Hop . | . . . . . . Pick Up 38 | 6 6 2 . 5 19 Fast Attach 23 | 7 8 1 . . 7 Attach 5 | . . . . . 5 Detach 6 | . 4 1 . . 1 Swap 20 | . 1 1 . 2 16 Drop 24 | 1 7 3 . 4 9 Fire 80 | 3 27 3 . 2 45 Melee . | . . . . . . Ram . | . . . . . . Kick . | . . . . . . Crush . | . . . . . . Escape Stasis . | . . . . . . Rewire . | . . . . . . Trap . | . . . . . . Miscellaneous . | . . . . . . Route ------- -11/Scrapyard -10/Materials (discovered 2 exits: [*Mat] / *Min) -10/Mines (discovered 2 exits: [*Mat] / *Exi) -10/Exiles -9/Mines (discovered 2 exits: *Mat x2) -8/Materials History --------- Turn | Location | Event 35 | -11/Scrapyard | Discovered new exit (range 15) 112 | -11/Scrapyard | Entered Materials 250 | -10/Materials | Discovered new exit (range 12) 300 | -10/Materials | Build established: Mutant 337 | -10/Materials | Discovered new exit (range 12) 419 | -10/Materials | Repaired Arm. Wheel 453 | -10/Materials | Repaired Med. Armor Plating 599 | -10/Materials | Entered Mines 599 | -10/Mines | Discovered new exit (range 9) 603 | -10/Mines | Met a Derelict bent on vengeance 769 | -10/Mines | Met a Derelict shopkeep closing up shop 809 | -10/Mines | Deemed a non-threat by the Exiles lab entrance 810 | -10/Mines | Discovered new exit (range 5) 820 | -10/Mines | Entered Exiles 841 | -10/Exiles | Met 8R-AWN 857 | -10/Exiles | Met EX-HEX 901 | -10/Exiles | Met EX-DEC 909 | -10/Exiles | Learned location of Zion (-6) 946 | -10/Exiles | Visited The Gauntlet 1139 | -10/Exiles | Discovered new exit (range 15) 1191 | -10/Exiles | Met EX-BIN 1308 | -10/Exiles | Entered Mines 1311 | -9/Mines | Met a Derelict who couldn't figure out how to use a Trap Extractor 1407 | -9/Mines | Learned Materials garrison access intel 1477 | -9/Mines | Identified exit to Materials 1551 | -9/Mines | YI-UF0 nonchalantly dropped a Grenade Launcher on the ground 1586 | -9/Mines | Discovered exit to Materials (range 15) 1795 | -9/Mines | Entered Materials 1795 | -8/Materials | Evolved 4 slots: Propulsion x1, Utility x2, Weapon x1 1796 | -8/Materials | Loaded intel: 1 garrison access location 2033 | -8/Materials | Destroyed 7 combat bots 2388 | -8/Materials | Repaired Adv. Treads 2421 | -8/Materials | Repaired Arm. Wheel 2454 | -8/Materials | Repaired Arm. Wheel 2466 | -8/Materials | Build established: Skirmisher 2487 | -8/Materials | Repaired Arm. Wheel 2521 | -8/Materials | Repaired Med. Armor Plating 2560 | -8/Materials | Repaired Pulse Rifle 2847 | -8/Materials | Self-destructed Last Messages --------------- 02762_ Shotgun severed. 02762_ Minigun severed. 02764_ Dropped Wheel. 02764_ Acquired Arm. Wheel. 02764_ Triggered Blade Trap. 02764_ Massive razor-sharp blades shoot up from within the floor. 02764_ Arm. Wheel severed. 02764_ Hrd. Light Armor Plating severed. 02764_ Arm. Wheel severed. 02765_ Triggered Blade Trap. 02765_ Massive razor-sharp blades shoot up from within the floor. 02765_ Lgt. Nuclear Core severed. 02765_ Machine Analyzer severed. 02767_ U-05 Engineer lays Concrete. 02793_ Dropped Hvy. Assault Rifle. 02793_ Acquired Minigun. 02799_ R-06 Scavenger collects Shotgun. 02803_ R-06 Scavenger collects Minigun. 02806_ R-06 Scavenger collects Arm. Wheel. 02807_ Acquired Hvy. Assault Rifle. Map ----- +----------------------------------------------------+ | ?????????????????????????????????????????????????? | | ?????????????????????????????????????????????????? | | ?????????????????????????????????????????????????? | | ?????????????????????????????????????????????????? | | ?????????????????????????????????????????????????? | | ?????????????????????????????????????????????????? | | ?????????????????????????????????????????????????? | | ????????????????????????????????????????????????## | | ????????????????????????????????????????????#? | | ????????????????????????????????????????????# | | ???????????????????????????????? ?????????# """ | | ???????????????????????????????# #????????# """ | | ???????????????????????????????# #????????# """ | | ???????????????????????????????# #????????# | | ???????????????????????????????# ##???????? | | ???????????????????????????????# ## ???????? | | ???????????????????????????????# # ########+ | | ???????????????????????????????# # | | ???????????????????????????????# # | | ???????????????????????????????# # | | ???????????????????????????????# # ####### | | ???????????????????????????????# ###?????????# | | ???????????##################### ############# | | ?????????? ! % | | ?????????? = | | ?????????? ow*@ k | | ?????????????############/########### ######## | | ???????????????????????? ?????????# # ?# | | ???????????????????????? ?????????# # # | | ??????????????????????? """????????#% # # | | ??????????????????????? """????????# # + | | ??????????????????????# """ ???????# # # | | ??????????????????????# ???????# % # # | | ??????????????????????########??????# ! ######?# | | ???????????????????????????###??????# #??????# | | ?????????????????????????### ######## #??????# | | ?????????????????????????# ## #####??# | | ?????????????????????????# !! % " # %%####### | | ?????????????????????????# !! T # [ %! | | ?????????????????????????# ! " + %[ ! | | ?????????????????????????# ! # = |%= = | | ?????????????????????????# ! # *%[ ######### | | ?????????????????????????# ####=######???? | | ?????????????????????????# ##=# # #??????# | | ?????????????????????????############## ###????### | | ?????????????????????????????????????##+######## | | ?????????????????????????????????????# # | | ?????????????????????????????????????# # | | ?????????????????????????????????????# /# | | ?????????????????????????????????????# # | +----------------------------------------------------+ Best States ------------- Heat Dissipation 31 Energy Generation 14 Energy Capacity 250 Matter Stores 300 Matter Capacity 300 Sight Range 16 Robot Scan Range 15 Terrain Scan Range 16 Terrain Scan Density 10 Armor Coverage 450 Evasion (%) 42 Recoil Reduction 2 Item Schematics ----------------- None Robot Schematics ------------------ None Fabricated ------------ Nothing Alien Tech Used ----------------- None Achievements -------------- None Challenges ------------ None Game ------ Seed TitaniumDerelictMagmablaster Manual? 0 Play Time 00:40:40 Cumulative 111.0 hours Start 2021.12.04 @ 17:46:09 End 2021.12.04 @ 19:17:51 Sessions 3 Manual Loads 0 Difficulty Rogue Special Mode None Game No. 73 Rogue 69 Adventurer 3 Explorer 1 Win Type - Total 1 Types 1/0/0/0/0/0/0/0/0 Lore% 50 Gallery% 44 Achievement% 41 Wizard Run 0 Options --------- ASCII 0 Keyboard 0 Movement Mouse Keybinds 1 Fullscreen 1 Font 18/TerminusBold Map View 76x50 Tactical HUD 1 Map Filters NONE Filters NONE Steam 1 RUN: f8b3f593-3f95-465a-aa8c-8c3a906e7b12